fUSD/lending_fUSD_20250923
["ID","MTS","AMOUNT","RATE_DAILY","PERIOD"]
[387166416,1758602856770,-5000.0,0.000346,120]
[387166417,1758602856801,-260.97,0.00034604,60]
[387166418,1758602856835,-260.97,0.00034704,60]
[387166419,1758602856865,-80000.0,0.0003472,88]
[387166420,1758602856895,-30000.0,0.0003472,83]
[387166421,1758602856925,-90000.0,0.0003475,89]
[387166422,1758602856955,-40000.0,0.0003478,83]
[387166423,1758602856986,-1973.56,0.00034794,120]
[387166424,1758602857016,-161.0,0.000348,120]
[387166425,1758602857046,-25000.0,0.000348,120]
[387166426,1758602857077,-260.97,0.00034804,60]
[387166427,1758602857106,-1432.09332874,0.0003485,60]
[387166428,1758602857135,-5000.0,0.000349,120]
[387166429,1758602857165,-20000.0001,0.000349,120]
[387166430,1758602857195,-5000.0,0.000349,90]
[387166431,1758602857224,-5000.0,0.000349,90]
[387166432,1758602857253,-5000.0,0.000349,90]
[387166433,1758602857282,-5000.0,0.000349,90]
[387166434,1758602857311,-5000.0,0.000349,90]
[387166435,1758602857340,-5000.0,0.000349,90]
[387166436,1758602857370,-5000.0,0.000349,90]
[387166437,1758602857399,-5000.0,0.000349,90]
[387166438,1758602857429,-5000.0,0.000349,90]
[387166439,1758602857458,-5000.0,0.000349,90]
[387166440,1758602857488,-5000.0,0.000349,90]
[387166441,1758602857516,-5000.0,0.000349,90]
[387166442,1758602857545,-5000.0,0.000349,90]
[387166443,1758602857575,-5000.0,0.000349,90]
[387166444,1758602857607,-260.97,0.00034904,60]
[387166445,1758602857637,-333.38501164,0.0003495,120]
[387166446,1758602857669,-150.0,0.00034972,120]
[387166447,1758602857699,-2000.0,0.00035,120]
[387166448,1758602857730,-10511.70282098,0.00035,120]
[387166449,1758602857761,-1000.0,0.00035,90]
[387166450,1758602857791,-5000.0,0.00035,120]
[387166451,1758602857822,-14053.0,0.00035,120]
[387166452,1758602857852,-5000.0,0.00035,120]
[387166453,1758602857880,-3398.52040688,0.00035,120]
[387166454,1758602857905,-8325.71389332,0.00035,90]
[387166455,1758602857931,-150.0,0.00035,120]
[387166456,1758602857956,-1000.0,0.00035,120]
[387166457,1758602857981,-1000.0,0.00035,120]
[387166458,1758602858007,-1000.0,0.00035,120]
[387166459,1758602858033,-1000.0,0.00035,120]
[387166460,1758602858490,-1000.0,0.00035,120]
[387166461,1758602858516,-1000.0,0.00035,120]
[387166462,1758602858541,-1592.84,0.00035,120]
[387166463,1758602858567,-4919.97,0.00035,120]
[387166464,1758602858591,-650.0,0.00035,120]
[387166465,1758602858614,-2000.0,0.00035,120]
[387166466,1758602858640,-260.97,0.00035004,60]
[387166467,1758602858665,-1015.38,0.000351,120]
[387166468,1758602858691,-260.97,0.00035104,60]
[387166469,1758602858716,-5000.0,0.000352,120]
[387166470,1758602858741,-150.0,0.000352,120]
[387166471,1758602858768,-260.97,0.00035204,60]
[387166472,1758602858793,-260.97,0.00035304,60]
[387166473,1758602858820,-10511.70282098,0.000354,120]
[387166474,1758602858845,-5000.0,0.000354,120]
[387166475,1758602858871,-260.97,0.00035404,60]
[387166476,1758602858895,-5912.50758967,0.00035431,120]
[387166477,1758602858921,-100000.0,0.0003548,90]
[387166478,1758602858947,-260.97,0.00035504,60]
[387166479,1758602858972,-1157.92579337,0.000356,120]
[387166480,1758602858998,-260.97,0.00035604,60]
[387166481,1758602859024,-10511.70282098,0.000357,120]
[387166482,1758602859048,-2006.9,0.000357,120]
[387166483,1758602859076,-260.97,0.00035704,60]
[387166484,1758602859102,-7165.8,0.00035738,60]
[387166485,1758602859154,-150.0,0.00035748,120]
[387166486,1758602859179,-260.97,0.00035804,60]
[387166487,1758602859204,-5998.07853839,0.0003585,60]
[387166488,1758602859229,-2099.02161217,0.0003588,90]
[387166489,1758602859253,-5000.0,0.000359,120]
[387166490,1758602859280,-260.97,0.00035904,60]
[387166491,1758602859307,-16560.0,0.00036,120]
[387166492,1758602859331,-200.0,0.00036,120]
[387166493,1758602859355,-1000.0,0.00036,120]
[387166494,1758602859379,-4000.0,0.00036,50]
[387166495,1758602859405,-260.97,0.00036004,60]
[387166496,1758602859431,-10511.70282098,0.000361,120]
[387166497,1758602859455,-153.0,0.000361,120]
[387166498,1758602859486,-260.97,0.00036104,60]
[387166499,1758602859510,-552.0,0.00036137,120]
[387166500,1758602859534,-1546.0,0.00036137,120]
[387166501,1758602859559,-150.0,0.00036193,120]
[387166502,1758602859585,-260.97,0.00036204,60]
[387166503,1758602859610,-260.97,0.00036304,60]
[387166504,1758602859635,-150.0,0.00036348,120]
[387166505,1758602859659,-1015.38,0.000364,120]
[387166506,1758602859685,-10511.70282098,0.000364,120]
[387166507,1758602859711,-260.97,0.00036404,60]
[387166508,1758602859736,-260.97,0.00036504,60]
[387166509,1758602859761,-260.97,0.00036604,60]
[387166510,1758602859787,-260.97,0.00036704,60]
[387166511,1758602859812,-1973.56,0.00036712,120]
[387166512,1758602859838,-10511.70282098,0.000368,120]
[387166513,1758602859863,-3688.99,0.000368,90]
[387166514,1758602859888,-25000.0,0.000368,120]
[387166515,1758602859915,-260.97,0.00036804,60]
[387166516,1758602859939,-930.0,0.000369,120]
[387166517,1758602859963,-5000.0,0.000369,120]
[387166518,1758602859989,-260.97,0.00036904,60]
[387166519,1758602860013,-150.0,0.00036909,120]
[387166520,1758602860039,-150.0,0.00036978,120]
[387166521,1758602860063,-170.47054184,0.00037,120]
[387166522,1758602860088,-10000.0,0.00037,120]
[387166523,1758602860113,-14053.0,0.00037,120]
[387166524,1758602860138,-4003.7374121,0.00037,120]
[387166525,1758602860164,-567.88346786,0.00037,120]
[387166526,1758602860190,-260.97,0.00037004,60]
[387166527,1758602860216,-260.97,0.00037104,60]
[387166528,1758602860241,-10511.70282098,0.000372,120]
[387166529,1758602860266,-4988.33890581,0.000372,120]
[387166530,1758602860291,-4988.33890578,0.000372,120]
[387166531,1758602860316,-4988.33890578,0.000372,120]
[387166532,1758602860340,-4988.33890578,0.000372,120]
[387166533,1758602860364,-4988.33890578,0.000372,120]
[387166534,1758602860390,-260.97,0.00037204,60]
[387166535,1758602860414,-2032.2716038,0.00037212,120]
[387166536,1758602860440,-260.97,0.00037304,60]
[387166537,1758602860469,-150.0,0.00037309,120]
[387166538,1758602860495,-150.0,0.00037327,120]
[387166539,1758602860521,-260.97,0.00037404,60]
[387166540,1758602860548,-10511.70282098,0.000375,120]
[387166541,1758602860575,-260.97,0.00037504,60]
[387166542,1758602860599,-200.0,0.00037533,120]
[387166543,1758602860625,-150.0,0.00037553,120]
[387166544,1758602860653,-260.97,0.00037604,60]
[387166545,1758602860679,-150.0,0.000377,120]
[387166546,1758602860705,-260.97,0.00037704,60]
[387166547,1758602860731,-150.0,0.00037741,120]
[387166548,1758602860756,-1085.60913561,0.0003777,60]
[387166549,1758602860782,-153.0,0.000378,120]
[387166550,1758602860809,-25000.0,0.000378,120]
[387166551,1758602860962,-260.97,0.00037804,60]
[387166552,1758602861025,-150.0,0.00037833,120]
[387166553,1758602861051,-306.65917872,0.0003787,120]
[387166554,1758602861079,-10511.70282098,0.000379,120]
[387166555,1758602861105,-5000.0,0.000379,120]
[387166556,1758602861131,-260.97,0.00037904,60]
[387166557,1758602861156,-690.9595875,0.00037999,120]
[387166558,1758602861180,-710.0,0.00038,120]
[387166559,1758602861204,-268.99594475,0.00038,120]
[387166560,1758602861229,-500.0,0.00038,90]
[387166561,1758602861253,-500.0,0.00038,120]
[387166562,1758602861278,-500.0,0.00038,120]
[387166563,1758602861303,-500.0,0.00038,120]
[387166564,1758602861327,-500.0,0.00038,120]
[387166565,1758602861352,-614.0,0.00038,120]
[387166566,1758602861377,-300.0,0.00038,120]
[387166567,1758602861402,-150.0,0.00038,120]
[387166568,1758602861429,-260.97,0.00038004,60]
[387166569,1758602861454,-6020.71,0.000381,120]
[387166570,1758602861483,-260.97,0.00038104,60]
[387166571,1758602861510,-260.97,0.00038204,60]
[387166572,1758602861536,-10511.70282098,0.000383,120]
[387166573,1758602861563,-260.97,0.00038304,60]
[387166574,1758602861589,-942.58,0.00038376,120]
[387166575,1758602861615,-102086.0,0.000384,60]
[387166576,1758602861649,-260.97,0.00038404,120]
[387166577,1758602861674,-567.88346786,0.0003847,120]
[387166578,1758602861699,-260.97,0.00038504,120]
[387166579,1758602861727,-260.97,0.00038604,120]
[387166580,1758602861753,-1973.56,0.0003863,120]
[387166581,1758602861778,-787.0,0.0003868,120]
[387166582,1758602861807,-10511.70282098,0.000387,120]
[387166583,1758602861835,-161.0,0.000387,120]
[387166584,1758602861860,-20000.0,0.000387,120]
[387166585,1758602861887,-260.97,0.00038704,120]
[387166586,1758602861912,-2131.02,0.00038778,60]
[387166587,1758602861937,-10000.0,0.000388,120]
[387166588,1758602861963,-25000.0,0.000388,120]
[387166589,1758602861990,-260.97,0.00038804,120]
[387166590,1758602862015,-718.25488799,0.000389,120]
[387166591,1758602862039,-506.575,0.000389,90]
[387166592,1758602862063,-5000.0,0.000389,120]
[387166593,1758602862088,-10000.0,0.000389,120]
[387166594,1758602862114,-260.97,0.00038904,120]
[387166595,1758602862139,-927.6298139,0.00039,120]
[387166596,1758602862163,-176.03493444,0.00039,120]
[387166597,1758602862188,-1189.12272221,0.00039,120]
[387166598,1758602862214,-10511.70282098,0.00039,120]
[387166599,1758602862239,-5000.0,0.00039,120]
[387166600,1758602862264,-14053.0,0.00039,120]
[387166601,1758602862290,-170.14696745,0.00039,120]
[387166602,1758602862315,-2524.8226266,0.00039,120]
[387166603,1758602862340,-4000.0,0.00039,120]
[387166604,1758602862368,-260.97,0.00039004,120]
[387166605,1758602862394,-260.97,0.00039104,120]
[387166606,1758602862420,-50000.0,0.00039137,120]
[387166607,1758602862447,-260.97,0.00039204,120]
[387166608,1758602862475,-260.97,0.00039304,120]
[387166609,1758602862503,-10511.70282098,0.000394,120]
[387166610,1758602862529,-260.97,0.00039404,120]
[387166611,1758602862558,-153.0,0.000395,120]
[387166612,1758602862584,-260.97,0.00039504,120]
[387166613,1758602862611,-260.97,0.00039604,120]
[387166614,1758602862636,-20000.0,0.000397,120]
[387166615,1758602862663,-260.97,0.00039704,120]
[387166616,1758602862691,-10511.70282098,0.000398,120]
[387166617,1758602862717,-4859.44503668,0.000398,60]
[387166618,1758602862743,-6866.76203309,0.000398,120]
[387166619,1758602862772,-25000.0,0.000398,120]
[387166620,1758602862801,-260.97,0.00039804,120]
[387166621,1758602862827,-375.97764206,0.00039886,90]
[387166622,1758602862854,-5000.0,0.000399,120]
[387166623,1758602862942,-1104.45684816,0.000399,120]
[387166624,1758602862968,-1104.45684811,0.000399,120]
[387166625,1758602862992,-1104.45684811,0.000399,120]
[387166626,1758602863017,-1104.45684811,0.000399,120]
[387166627,1758602863042,-1104.45684811,0.000399,120]
[387166628,1758602863069,-1104.45684811,0.000399,120]
[387166629,1758602863094,-1104.45684811,0.000399,120]
[387166630,1758602863119,-1104.45684811,0.000399,120]
[387166631,1758602863144,-1104.45684811,0.000399,120]
[387166632,1758602863169,-1104.45684811,0.000399,120]
[387166633,1758602863195,-260.97,0.00039904,120]
[387166634,1758602863221,-200.0,0.0003994,120]
[387166635,1758602863247,-200.0,0.0003994,120]
[387166636,1758602863272,-203.48132993,0.0003994,120]
[387166637,1758602863297,-371.0,0.00039986,90]
[387166638,1758602863322,-776.56355148,0.0003999,120]
[387166639,1758602863346,-4090.0618181,0.00039999,120]
[387166640,1758602863373,-22058.12937728,0.0004,60]
[387166641,1758602863398,-183.92447725,0.0004,120]
[387166642,1758602863422,-557.0,0.0004,120]
[387166643,1758602863448,-174.876384,0.0004,60]
[387166644,1758602863475,-300.0,0.0004,120]
[387166645,1758602863500,-2250616.92716484,0.0004,120]
[387166646,1758602866949,-786.87,0.00035165,60]
[387166647,1758602866977,-6369.6,0.00035165,60]
[387166648,1758602867005,-300.0,0.00035737,75]
[387166649,1758602867032,-786.87,0.00035738,60]
[387166650,1758602867061,-6369.6,0.00035738,60]
[387166651,1758602867131,-3554280.61278104,0.0004,120]
[387166652,1758602867159,-10000.0,0.0004,120]
[387166653,1758602867185,-5042.42360599,0.0004,120]
[387166654,1758602867211,-4185.12093669,0.0004,120]
[387166655,1758602867237,-9278.46335476,0.0004,120]
[387166656,1758602867264,-4799.17867457,0.0004,120]
[387166657,1758602867291,-4557.56873037,0.0004,120]
[387166658,1758602867674,-4000.0,0.0004,120]
[387166659,1758602867702,-4978.49574758,0.0004,120]
[387166660,1758602867731,-30000.0,0.0004,60]
[387166661,1758602867758,-10000.0,0.0004,120]
[387166662,1758602867786,-10000.0,0.0004,120]
[387166663,1758602867812,-10000.0,0.0004,120]
[387166664,1758602867837,-46300.0,0.0004,120]
[387166665,1758602867863,-5000.0,0.0004,60]
[387166666,1758602867889,-200.0,0.0004,120]
[387166667,1758602867914,-344.0,0.0004,120]
[387166668,1758602867940,-6958.83988923,0.0004,120]
[387166669,1758602867966,-2002.63,0.0004,120]
[387166670,1758602867992,-567.88346786,0.0004,120]
[387166671,1758602868021,-2086.05,0.0004,120]
[387166672,1758602868048,-7194.06,0.0004,120]
[387166673,1758602868075,-214.55,0.0004,120]
[387166674,1758602868103,-1116.39,0.0004,120]
[387166675,1758602868129,-516.64379166,0.0004,120]
[387166676,1758602868156,-1116.35,0.0004,120]
[387166677,1758602868181,-1822.41,0.0004,120]
[387166678,1758602868208,-1930.1,0.0004,120]
[387166679,1758602868233,-3357.74,0.0004,120]
[387166680,1758602868259,-9317.99,0.0004,120]
[387166681,1758602868284,-2000.0,0.0004,120]
[387166682,1758602868309,-1039.45,0.0004,120]
[387166683,1758602868335,-438.34,0.0004,120]
[387166684,1758602868362,-260.97,0.00040004,120]
[387166685,1758602868389,-260.97,0.00040104,120]
[387166686,1758602868414,-3599.88,0.0004018,90]
[387166687,1758602868440,-10511.70282098,0.000402,120]
[387166688,1758602868469,-260.97,0.00040204,120]
[387166689,1758602868496,-260.97,0.00040304,120]
[387166690,1758602868526,-260.97,0.00040404,120]
[387166691,1758602868555,-385.41244954,0.000405,120]
[387166692,1758602868582,-260.97,0.00040504,120]
[387166693,1758602868607,-1973.56,0.00040547,120]
[387166694,1758602868634,-10000.0,0.00040579,120]
[387166695,1758602868659,-10511.70282098,0.000406,120]
[387166696,1758602868685,-260.97,0.00040604,120]
[387166697,1758602868710,-20000.0,0.000407,120]
[387166698,1758602868736,-10243.0,0.000407,117]
[387166699,1758602868764,-260.97,0.00040704,120]
[387166700,1758602868789,-25000.0,0.000408,120]
[387166701,1758602868815,-3916.38084395,0.000408,60]
[387166702,1758602868842,-260.97,0.00040804,120]
[387166703,1758602868868,-5092.00957886,0.000409,90]
[387166704,1758602868895,-5000.0,0.000409,120]
[387166705,1758602868925,-260.97,0.00040904,120]
[387166706,1758602868950,-511.01021795,0.00040999,120]
[387166707,1758602868975,-578.49642058,0.00041,120]
[387166708,1758602869001,-150.77980583,0.00041,120]
[387166709,1758602869026,-407.68,0.00041,120]
[387166710,1758602869051,-500.0,0.00041,120]
[387166711,1758602869077,-14053.0,0.00041,120]
[387166712,1758602869102,-10000.0,0.00041,120]
[387166713,1758602869129,-260.97,0.00041004,120]
[387166714,1758602869154,-1321.6,0.00041041,120]
[387166715,1758602869180,-500.0,0.00041095,120]
[387166716,1758602869204,-411.09,0.00041096,120]
[387166717,1758602869232,-260.97,0.00041104,120]
[387166718,1758602869256,-3000.0,0.000412,120]
[387166719,1758602869282,-8000.0,0.000412,120]
[387166720,1758602869307,-153.0,0.000412,120]
[387166721,1758602869332,-516.64379166,0.000412,120]
[387166722,1758602869358,-260.97,0.00041204,120]
[387166723,1758602869385,-260.97,0.00041304,120]
[387166724,1758602869412,-260.97,0.00041404,120]
[387166725,1758602869438,-200.0,0.00041475,120]
[387166726,1758602869463,-1900.0,0.00041492,60]
[387166727,1758602869490,-800.0,0.00041492,60]
[387166728,1758602869515,-5000.0,0.000415,120]
[387166729,1758602869540,-260.97,0.00041504,120]
[387166730,1758602869566,-260.97,0.00041604,120]
[387166731,1758602869591,-20000.0,0.000417,120]
[387166732,1758602869617,-260.97,0.00041704,120]
[387166733,1758602869643,-25000.0,0.000418,120]
[387166734,1758602869668,-260.97,0.00041804,120]
[387166735,1758602869693,-5000.0,0.000419,120]
[387166736,1758602869719,-260.97,0.00041904,120]
[387166737,1758602869744,-1000.0,0.00042,120]
[387166738,1758602869768,-349.0,0.00042,120]
[387166739,1758602869792,-2500.0,0.00042,120]
[387166740,1758602869818,-3552.28446092,0.00042,80]
[387166741,1758602869843,-1015.0,0.00042,120]
[387166742,1758602869868,-2000.0,0.00042,120]
[387166743,1758602869892,-158.93459374,0.00042,120]
[387166744,1758602869919,-260.97,0.00042004,120]
[387166745,1758602869947,-260.97,0.00042104,120]
[387166746,1758602869973,-10000.0,0.000422,120]
[387166747,1758602870000,-188.26121526,0.00042204,120]
[387166748,1758602881876,-800.0,0.00041492,60]
[387166749,1758602881906,-72.70878474,0.00042204,120]
[387166750,1758602881933,-260.97,0.00042304,120]
[387166751,1758602881959,-1321.6,0.00042361,120]
[387166752,1758602881986,-12166.92218781,0.000424,120]
[387166753,1758602882013,-260.97,0.00042404,120]
[387166754,1758602882039,-305.20837088,0.00042465,120]
[387166755,1758602882065,-1973.56,0.00042465,120]
[387166756,1758602882090,-30000.0,0.000425,120]
[387166757,1758602882116,-1551.59759981,0.000425,120]
[387166758,1758602882141,-161.0,0.000425,120]
[387166759,1758602882168,-260.97,0.00042504,120]
[387166760,1758602882193,-1900.0,0.00042588,60]
[387166761,1758602882218,-800.0,0.00042588,60]
[387166762,1758602882243,-800.0,0.00042588,60]
[387166763,1758602882270,-260.97,0.00042604,120]
[387166764,1758602882296,-200.0,0.00042609,120]
[387166765,1758602882320,-3993.0,0.00042691,120]
[387166766,1758602882347,-752.67261292,0.000427,120]
[387166767,1758602882372,-211.5298393,0.000427,120]
[387166768,1758602882398,-4886.07121366,0.000427,120]
[387166769,1758602882424,-254.77678497,0.000427,120]
[387166770,1758602882449,-20000.0,0.000427,120]
[387166771,1758602882477,-260.97,0.00042704,120]
[387166772,1758602882503,-29604.08087755,0.0004275,120]
[387166773,1758602882530,-625.83217515,0.0004279,120]
[387166774,1758602882555,-4087.99960131,0.0004279,120]
[387166775,1758602882581,-9741.31458003,0.000428,120]
[387166776,1758602882608,-260.97,0.00042804,120]
[387166777,1758602882635,-807.26,0.00042888,65]
[387166778,1758602882660,-5000.0,0.000429,120]
[387166779,1758602882686,-5000.0,0.000429,120]
[387166780,1758602882712,-153.0,0.000429,120]
[387166781,1758602882739,-261.73237567,0.00042904,120]
[387166782,1758602882765,-960870.63676029,0.00042924,120]
[387166783,1758602882790,-172.58994301,0.00043,120]
[387166784,1758602882815,-5000.0,0.00043,120]
[387166785,1758602882840,-2590.0,0.00043,120]
[387166786,1758602882866,-432.0,0.00043,120]
[387166787,1758602882892,-174197.93610638,0.00043,120]
[387166788,1758602882919,-14053.0,0.00043,120]
[387166789,1758602882945,-3785.9756159,0.00043,120]
[387166790,1758602882970,-13767.34810908,0.00043,120]
[387166791,1758602882996,-10000.0,0.00043,120]
[387166792,1758602883022,-5000.0,0.00043,120]
[387166793,1758602883050,-12968.44682279,0.00043,120]
[387166794,1758602883078,-44383.81168449,0.00043,120]
[387166795,1758602883104,-679.77510562,0.00043,120]
[387166796,1758602883131,-33477.04,0.00043137,120]
[387166797,1758602883157,-976.5122779,0.0004314,120]
[387166798,1758602883183,-3566.98,0.0004318,90]
[387166799,1758602883208,-10000.0,0.000432,120]
[387166800,1758602883234,-151.0,0.0004323,120]
[387166801,1758602883261,-650.0,0.0004329,120]
[387166802,1758602883288,-6020.71,0.000433,120]
[387166803,1758602883317,-538052.70406308,0.000434,120]
[387166804,1758602883349,-156.01858999,0.000435,120]
[387166805,1758602883381,-10000.0,0.000436,120]
[387166806,1758602883409,-1321.6,0.0004368,120]
[387166807,1758602883441,-1900.0,0.00043684,60]
[387166808,1758602883469,-800.0,0.00043684,60]
[387166809,1758602883496,-540.34130008,0.000437,120]
[387166810,1758602883521,-23590.92280664,0.000437,90]
[387166811,1758602883546,-20000.0,0.000437,120]
[387166812,1758602883570,-200.0,0.00043743,120]
[387166813,1758602883595,-164.1913924,0.000438,120]
[387166814,1758602883620,-2004.35,0.000438,120]
[387166815,1758602883643,-3520.4095061,0.000438,120]
[387166816,1758602883669,-547.63810399,0.000438,120]
[387166817,1758602883693,-261.1363733,0.0004383,120]
[387166818,1758602883718,-799.83380551,0.00043835,50]
[387166819,1758602883744,-942.58,0.00043853,120]
[387166820,1758602884053,-5000.0,0.000439,120]
[387166821,1758602884084,-6164.49921658,0.0004398,120]
[387166822,1758602884112,-371.0,0.00043986,120]
[387166823,1758602884138,-1831.42035099,0.00043987,120]
[387166824,1758602884164,-5000.0,0.00044,120]
[387166825,1758602884190,-5000.0,0.00044,120]
[387166826,1758602884216,-253.8948612,0.00044,120]
[387166827,1758602884241,-349.13950455,0.00044,120]
[387166828,1758602884267,-925.04958711,0.00044,120]
[387166829,1758602884293,-969.77877159,0.00044,120]
[387166830,1758602884319,-563.28105329,0.00044,120]
[387166831,1758602884347,-50000.0,0.00044,120]
[387166832,1758602884375,-16012.3341265,0.00044,120]
[387166833,1758602884404,-269.62397372,0.00044,120]
[387166834,1758602884435,-44444.0,0.00044,60]
[387166835,1758602884462,-3620.67140454,0.00044,120]
[387166836,1758602884499,-22250.17563164,0.00044,120]
[387166837,1758602884529,-4918.92025497,0.00044,120]
[387166838,1758602884556,-7505.55422313,0.00044,120]
[387166839,1758602884587,-20000.0,0.00044,120]
[387166840,1758602884612,-5882.5851642,0.00044,120]
[387166841,1758602884639,-9928.35319128,0.00044,90]
[387166842,1758602884669,-21456.63253123,0.00044,120]
[387166843,1758602884697,-21000.0,0.000442,120]
[387166844,1758602884730,-26676.0,0.00044233,120]
[387166845,1758602884760,-6000.0,0.00044321,60]
[387166846,1758602884788,-1973.56,0.00044383,120]
[387166847,1758602884815,-3814.33878424,0.000444,120]
[387166848,1758602884844,-683.21669238,0.000445,120]
[387166849,1758602884870,-2967.12713943,0.000445,120]
[387166850,1758602884898,-4457.59991216,0.000445,120]
[387166851,1758602884924,-3529.74711545,0.000445,120]
[387166852,1758602884952,-153.0,0.000446,120]
[387166853,1758602884978,-1325.1404492,0.00044685,120]
[387166854,1758602885005,-267.78830306,0.00044692,120]
[387166855,1758602885033,-378506.24804954,0.00044694,120]
[387166856,1758602885061,-378506.24804954,0.00044698,120]
[387166857,1758602885090,-227.8094018,0.000447,90]
[387166858,1758602885115,-20000.0,0.000447,120]
[387166859,1758602885141,-1325.1404492,0.00044709,120]
[387166860,1758602885167,-4860.52213993,0.00044711,120]
[387166861,1758602885193,-204.04826542,0.00044718,120]
[387166862,1758602885224,-267.78830306,0.0004472,120]
[387166863,1758602885251,-40803.36143308,0.00044739,120]
[387166864,1758602885278,-378506.24804954,0.0004474,120]
[387166865,1758602885305,-1325.1404492,0.0004474,120]
[387166866,1758602885333,-29604.08087755,0.0004475,120]
[387166867,1758602885360,-4860.52213993,0.00044757,120]
[387166868,1758602885387,-1325.1404492,0.00044763,120]
[387166869,1758602885414,-4210.21268811,0.00044766,120]
[387166870,1758602885440,-204.04826542,0.0004477,120]
[387166871,1758602885469,-2814.5062934,0.00044775,120]
[387166872,1758602885499,-2901.35560642,0.00044777,120]
[387166873,1758602885526,-204.04826542,0.00044778,120]
[387166874,1758602885552,-1900.0,0.0004478,60]
[387166875,1758602885579,-800.0,0.0004478,60]
[387166876,1758602885606,-2901.35560642,0.00044789,120]
[387166877,1758602885634,-40803.36143308,0.00044789,120]
[387166878,1758602885662,-204.04826542,0.00044793,120]
[387166879,1758602885690,-267.78830306,0.00044798,120]
[387166880,1758602885717,-1325.1404492,0.00044806,120]
[387166881,1758602885746,-349034.22915427,0.00044808,120]
[387166882,1758602889928,-800.0,0.00043684,60]
[387166883,1758602889961,-800.0,0.0004478,60]
[387166884,1758602889990,-29472.01889527,0.00044808,120]
[387166885,1758602890019,-4210.21268811,0.00044819,120]
[387166886,1758602890046,-4860.52213993,0.00044826,120]
[387166887,1758602890073,-2901.35560642,0.00044832,120]
[387166888,1758602890101,-2814.5062934,0.00044837,120]
[387166889,1758602890127,-4860.52213993,0.00044841,120]
[387166890,1758602890152,-2901.35560642,0.00044844,120]
[387166891,1758602890178,-40803.36143308,0.00044848,120]
[387166892,1758602890204,-4210.21268811,0.00044852,120]
[387166893,1758602890229,-2901.35560642,0.00044853,120]
[387166894,1758602890254,-4860.52213993,0.00044853,120]
[387166895,1758602890281,-267.78830306,0.0004486,120]
[387166896,1758602890307,-204.04826542,0.00044861,120]
[387166897,1758602890335,-4860.52213993,0.00044868,120]
[387166898,1758602890362,-1325.1404492,0.00044873,120]
[387166899,1758602890388,-200.0,0.00044877,120]
[387166900,1758602890414,-10158.0,0.000449,120]
[387166901,1758602890440,-5000.0,0.000449,120]
[387166902,1758602890467,-2814.5062934,0.00044902,120]
[387166903,1758602890502,-2814.5062934,0.00044908,120]
[387166904,1758602890531,-378506.24804954,0.00044908,120]
[387166905,1758602890559,-2814.5062934,0.00044921,120]
[387166906,1758602890586,-40803.36143308,0.00044921,120]
[387166907,1758602890613,-4210.21268811,0.00044929,120]
[387166908,1758602890639,-378506.24804954,0.00044944,120]
[387166909,1758602890666,-2814.5062934,0.00044954,120]
[387166910,1758602890692,-4210.21268811,0.00044957,120]
[387166911,1758602890716,-2253056.98,0.0004496,120]
[387166912,1758602890743,-4210.21268811,0.00044961,120]
[387166913,1758602890770,-267.78830306,0.00044972,120]
[387166914,1758602890797,-40803.36143308,0.00044975,120]
[387166915,1758602890827,-2901.35560642,0.00044976,120]